[Event "*** Titled Tuesday Blitz"]
[Site "Chess.com"]
[Date "2021.03.09"]
[Round "9"]
[White "Marcin"]
[Black "Geller_Jakov"]
[Result "0-1"]
[WhiteElo "2525"]
[BlackElo "2636"]
[TimeControl "180+1"]
[EndTime "11:48:16 PST"]
[Termination "Geller_Jakov won on time"]

1. d4 {[%clk 0:03:00.9]} 1... d5 {[%clk 0:03:00]} 2. c4 {[%clk 0:03:00.5]} 2...
e6 {[%clk 0:03:00.3]} 3. Nf3 {[%clk 0:02:59.2]} 3... Nf6 {[%clk 0:03:00.2]} 4.
Nc3 {[%clk 0:02:57.1]} 4... c6 {[%clk 0:03:00.4]} 5. e3 {[%clk 0:02:54]} 5...
Nbd7 {[%clk 0:03:00]} 6. Be2 {[%clk 0:02:52.9]} 6... dxc4 {[%clk 0:02:59.4]} 7.
a4 {[%clk 0:02:51.7]} 7... Bd6 {[%clk 0:02:53.7]} 8. Nd2 {[%clk 0:02:51.4]} 8...
e5 {[%clk 0:02:44.5]} 9. Nxc4 {[%clk 0:02:49.7]} 9... Bc7 {[%clk 0:02:44.8]} 10.
b3 {[%clk 0:02:49.2]} 10... exd4 {[%clk 0:02:35.4]} 11. Qxd4 {[%clk 0:02:47.4]}
11... O-O {[%clk 0:02:24.8]} 12. Ba3 {[%clk 0:02:45.3]} 12... c5 {[%clk
0:02:20.7]} 13. Qh4 {[%clk 0:02:34.3]} 13... b6 {[%clk 0:02:13.5]} 14. Nb5
{[%clk 0:02:30.1]} 14... Bb7 {[%clk 0:02:04.7]} 15. Nxc7 {[%clk 0:02:29.1]}
15... Qxc7 {[%clk 0:02:05.1]} 16. O-O {[%clk 0:02:28.9]} 16... Ne5 {[%clk
0:01:30]} 17. Bb2 {[%clk 0:02:21.9]} 17... Ng6 {[%clk 0:01:18]} 18. Qg5 {[%clk
0:01:59.4]} 18... h6 {[%clk 0:01:16.2]} 19. Qf5 {[%clk 0:01:59.3]} 19... Be4
{[%clk 0:01:11.8]} 20. Qh3 {[%clk 0:01:54.4]} 20... Qe7 {[%clk 0:01:09.7]} 21.
Bf3 {[%clk 0:01:44.8]} 21... Bxf3 {[%clk 0:01:06.1]} 22. Qxf3 {[%clk 0:01:43.9]}
22... Ne4 {[%clk 0:01:06.5]} 23. Rad1 {[%clk 0:01:38.9]} 23... Rfd8 {[%clk
0:01:04.8]} 24. Qf5 {[%clk 0:01:13.3]} 24... Nd6 {[%clk 0:00:46.7]} 25. Nxd6
{[%clk 0:01:07.9]} 25... Rxd6 {[%clk 0:00:47.6]} 26. Rd5 {[%clk 0:00:48.2]}
26... Rxd5 {[%clk 0:00:45.6]} 27. Qxd5 {[%clk 0:00:48.1]} 27... Rd8 {[%clk
0:00:46.3]} 28. Qc4 {[%clk 0:00:36.8]} 28... Qe6 {[%clk 0:00:24]} 29. Qc2 {[%clk
0:00:33.7]} 29... Qd5 {[%clk 0:00:23]} 30. a5 {[%clk 0:00:23.6]} 30... Nh4
{[%clk 0:00:17.9]} 31. f3 {[%clk 0:00:21.7]} 31... Qd2 {[%clk 0:00:18.1]} 32.
Rf2 {[%clk 0:00:11.8]} 32... Qxe3 {[%clk 0:00:18.2]} 33. Kf1 {[%clk 0:00:06.3]}
33... Ng6 {[%clk 0:00:13.3]} 34. Re2 {[%clk 0:00:05.8]} 34... Qf4 {[%clk
0:00:13]} 35. Qc3 {[%clk 0:00:04.5]} 35... f6 {[%clk 0:00:12.1]} 36. Kg1 {[%clk
0:00:02.5]} 36... Rd1+ {[%clk 0:00:11.2]} 37. Kf2 {[%clk 0:00:03.1]} 37... Qxh2
{[%clk 0:00:09.2]} 38. Re8+ {[%clk 0:00:02.8]} 38... Kh7 {[%clk 0:00:07.9]} 39.
Qc4 {[%clk 0:00:03.3]} 39... Qh4+ {[%clk 0:00:06.7]} 40. g3 {[%clk 0:00:02.7]}
40... Qxc4 {[%clk 0:00:06.5]} 0-1

[Event "*** Titled Tuesday Blitz"]
[Site "Chess.com"]
[Date "2021.03.09"]
[Round "9"]
[White "Leonid_Starozhilov"]
[Black "Cptn2"]
[Result "0-1"]
[WhiteElo "2686"]
[BlackElo "2500"]
[TimeControl "180+1"]
[EndTime "11:48:17 PST"]
[Termination "Cptn2 won on time"]

1. e4 {[%clk 0:03:00.9]} 1... c5 {[%clk 0:02:55.7]} 2. Nf3 {[%clk 0:03:00.8]}
2... d6 {[%clk 0:02:54.4]} 3. Bb5+ {[%clk 0:03:00.5]} 3... Bd7 {[%clk
0:02:53.8]} 4. a4 {[%clk 0:02:59.5]} 4... g6 {[%clk 0:02:52.5]} 5. O-O {[%clk
0:02:57.6]} 5... Bg7 {[%clk 0:02:52.4]} 6. c3 {[%clk 0:02:57.8]} 6... Nf6 {[%clk
0:02:50.8]} 7. Re1 {[%clk 0:02:57.5]} 7... O-O {[%clk 0:02:50.5]} 8. h3 {[%clk
0:02:57.4]} 8... Nc6 {[%clk 0:02:41.6]} 9. Na3 {[%clk 0:02:54.8]} 9... a6 {[%clk
0:02:26]} 10. Bf1 {[%clk 0:02:54.4]} 10... Rb8 {[%clk 0:02:25.5]} 11. d3 {[%clk
0:02:32.2]} 11... b5 {[%clk 0:02:24.2]} 12. axb5 {[%clk 0:02:33.1]} 12... axb5
{[%clk 0:02:25.1]} 13. Nc2 {[%clk 0:02:24.3]} 13... Qb6 {[%clk 0:02:23.1]} 14.
Be3 {[%clk 0:02:23.4]} 14... b4 {[%clk 0:02:19.3]} 15. Qd2 {[%clk 0:02:14.7]}
15... Na5 {[%clk 0:02:03.2]} 16. Qe2 {[%clk 0:02:06.4]} 16... Nb3 {[%clk
0:02:02]} 17. Rab1 {[%clk 0:02:06.3]} 17... bxc3 {[%clk 0:01:57.1]} 18. bxc3
{[%clk 0:02:05.9]} 18... Qc7 {[%clk 0:01:56.5]} 19. Nd2 {[%clk 0:01:45.8]} 19...
Nxd2 {[%clk 0:01:53]} 20. Qxd2 {[%clk 0:01:46.7]} 20... c4 {[%clk 0:01:53.2]}
21. Rxb8 {[%clk 0:01:23.7]} 21... Rxb8 {[%clk 0:01:54.1]} 22. Nb4 {[%clk
0:01:24.1]} 22... cxd3 {[%clk 0:01:46.4]} 23. Bxd3 {[%clk 0:01:23.6]} 23... Be6
{[%clk 0:01:43.4]} 24. Bd4 {[%clk 0:01:18.8]} 24... Rc8 {[%clk 0:01:42.9]} 25.
Rb1 {[%clk 0:00:34.5]} 25... Nd7 {[%clk 0:01:41.7]} 26. Bf1 {[%clk 0:00:14.6]}
26... Nc5 {[%clk 0:01:37.6]} 27. Nd5 {[%clk 0:00:13.5]} 27... Nxe4 {[%clk
0:01:32.6]} 28. Nxc7 {[%clk 0:00:08.5]} 28... Nxd2 {[%clk 0:01:32.9]} 29. Rb7
{[%clk 0:00:06]} 29... Bxd4 {[%clk 0:01:12.2]} 30. cxd4 {[%clk 0:00:06]} 30...
Bf5 {[%clk 0:01:13.1]} 31. Bb5 {[%clk 0:00:04.9]} 31... Nb3 {[%clk 0:01:08.8]}
32. Nd5 {[%clk 0:00:03.5]} 32... Rc1+ {[%clk 0:01:08.2]} 33. Kh2 {[%clk
0:00:03.7]} 33... Nxd4 {[%clk 0:01:09.1]} 34. Nxe7+ {[%clk 0:00:03.9]} 34... Kg7
{[%clk 0:01:07.8]} 35. Ba6 {[%clk 0:00:03.9]} 35... Be6 {[%clk 0:01:05]} 36. Ra7
{[%clk 0:00:03.3]} 36... Ra1 {[%clk 0:01:04]} 37. Ra8 {[%clk 0:00:02.6]} 37...
Kf6 {[%clk 0:00:48]} 38. Ng8+ {[%clk 0:00:02.8]} 38... Ke5 {[%clk 0:00:47.3]}
39. Nh6 {[%clk 0:00:03.2]} 39... Nb3 {[%clk 0:00:43]} 40. Bb7 {[%clk 0:00:03.4]}
40... Rxa8 {[%clk 0:00:40.3]} 41. Bxa8 {[%clk 0:00:04.3]} 41... d5 {[%clk
0:00:41.2]} 42. g3 {[%clk 0:00:03.4]} 42... d4 {[%clk 0:00:41]} 43. Kg1 {[%clk
0:00:03.5]} 43... d3 {[%clk 0:00:40.5]} 44. Bf3 {[%clk 0:00:03.7]} 44... Bxh3
{[%clk 0:00:40.6]} 45. Ng4+ {[%clk 0:00:03.2]} 45... Bxg4 {[%clk 0:00:39.7]} 46.
Bxg4 {[%clk 0:00:04.1]} 46... Nc5 {[%clk 0:00:38.3]} 47. Kf1 {[%clk 0:00:04.3]}
47... Ne4 {[%clk 0:00:38.1]} 48. Ke1 {[%clk 0:00:04.5]} 48... d2+ {[%clk
0:00:37.1]} 49. Ke2 {[%clk 0:00:04.6]} 49... d1=Q+ {[%clk 0:00:37]} 0-1

[Event "*** Titled Tuesday Blitz"]
[Site "Chess.com"]
[Date "2021.03.09"]
[Round "9"]
[White "RobertoJBM"]
[Black "KhamzinOlzhas"]
[Result "0-1"]
[WhiteElo "2714"]
[BlackElo "2574"]
[TimeControl "180+1"]
[EndTime "11:48:20 PST"]
[Termination "KhamzinOlzhas won by resignation"]

1. d4 {[%clk 0:02:58.8]} 1... Nf6 {[%clk 0:02:58.7]} 2. c4 {[%clk 0:02:50]} 2...
e6 {[%clk 0:02:58.1]} 3. Nf3 {[%clk 0:02:39.9]} 3... Bb4+ {[%clk 0:02:58.3]} 4.
Bd2 {[%clk 0:02:38.2]} 4... Be7 {[%clk 0:02:52.2]} 5. g3 {[%clk 0:02:36.6]} 5...
d5 {[%clk 0:02:51.5]} 6. Bg2 {[%clk 0:02:35.4]} 6... O-O {[%clk 0:02:50.7]} 7.
O-O {[%clk 0:02:34.9]} 7... c6 {[%clk 0:02:50.7]} 8. Qc2 {[%clk 0:02:34.5]} 8...
b6 {[%clk 0:02:50.1]} 9. b3 {[%clk 0:02:33.9]} 9... Nbd7 {[%clk 0:02:46.9]} 10.
Bf4 {[%clk 0:02:32.5]} 10... Ba6 {[%clk 0:02:44.7]} 11. Rd1 {[%clk 0:02:28]}
11... Rc8 {[%clk 0:02:45.2]} 12. Nc3 {[%clk 0:02:27.7]} 12... Nh5 {[%clk
0:02:39.6]} 13. Bc1 {[%clk 0:02:20.7]} 13... Nhf6 {[%clk 0:02:39]} 14. Bb2
{[%clk 0:02:17.8]} 14... Qc7 {[%clk 0:02:33.3]} 15. e4 {[%clk 0:02:07.3]} 15...
dxc4 {[%clk 0:02:32.8]} 16. Rac1 {[%clk 0:02:00.2]} 16... cxb3 {[%clk
0:02:14.4]} 17. axb3 {[%clk 0:01:58.5]} 17... Qb8 {[%clk 0:02:12.3]} 18. Qb1
{[%clk 0:01:49.1]} 18... Rfd8 {[%clk 0:02:00.8]} 19. h4 {[%clk 0:01:43.2]} 19...
b5 {[%clk 0:01:37.1]} 20. e5 {[%clk 0:01:38.6]} 20... Nd5 {[%clk 0:01:35.9]} 21.
Ne4 {[%clk 0:01:36.1]} 21... h6 {[%clk 0:01:05.9]} 22. Bf1 {[%clk 0:01:24.2]}
22... c5 {[%clk 0:01:05.7]} 23. dxc5 {[%clk 0:01:19]} 23... Nxc5 {[%clk
0:01:06.6]} 24. Nd6 {[%clk 0:01:16.7]} 24... Bxd6 {[%clk 0:01:01.9]} 25. exd6
{[%clk 0:01:16.5]} 25... Qxd6 {[%clk 0:00:56.1]} 26. Ba3 {[%clk 0:01:04.9]}
26... Qb6 {[%clk 0:00:53.3]} 27. Ne5 {[%clk 0:01:00.6]} 27... b4 {[%clk
0:00:46.9]} 28. Bb2 {[%clk 0:00:45.6]} 28... Bxf1 {[%clk 0:00:45.8]} 29. Kxf1
{[%clk 0:00:45.5]} 29... Nxb3 {[%clk 0:00:36.1]} 30. Rxc8 {[%clk 0:00:44.2]}
30... Rxc8 {[%clk 0:00:37]} 31. Nxf7 {[%clk 0:00:33.2]} 31... Qb5+ {[%clk
0:00:25.5]} 32. Kg1 {[%clk 0:00:30.3]} 32... Kxf7 {[%clk 0:00:26]} 33. Qe4
{[%clk 0:00:25.6]} 33... Nc3 {[%clk 0:00:12.1]} 34. Qf4+ {[%clk 0:00:21.8]}
34... Kg8 {[%clk 0:00:11.3]} 35. Re1 {[%clk 0:00:19.5]} 35... Rf8 {[%clk
0:00:08.3]} 36. Qe5 {[%clk 0:00:18.3]} 36... Qxe5 {[%clk 0:00:06.9]} 37. Rxe5
{[%clk 0:00:18.7]} 37... Nd2 {[%clk 0:00:07.2]} 38. Rxe6 {[%clk 0:00:17.3]}
38... Nde4 {[%clk 0:00:06.6]} 39. f4 {[%clk 0:00:11.9]} 39... Nxg3 {[%clk
0:00:06.2]} 40. Rg6 {[%clk 0:00:11.6]} 40... Nf5 {[%clk 0:00:05.8]} 41. Kf2
{[%clk 0:00:10.2]} 41... a5 {[%clk 0:00:05.8]} 42. Ra6 {[%clk 0:00:08.3]} 42...
Rd8 {[%clk 0:00:05.1]} 43. Kf3 {[%clk 0:00:07.7]} 43... Rd5 {[%clk 0:00:05.2]}
0-1

[Event "*** Titled Tuesday Blitz"]
[Site "Chess.com"]
[Date "2021.03.09"]
[Round "9"]
[White "Alex-11211"]
[Black "TheCavemanChesss"]
[Result "0-1"]
[WhiteElo "2419"]
[BlackElo "2581"]
[TimeControl "180+1"]
[EndTime "11:48:20 PST"]
[Termination "TheCavemanChesss won by checkmate"]

1. e4 {[%clk 0:03:00.9]} 1... c5 {[%clk 0:02:58.2]} 2. Nf3 {[%clk 0:03:01.2]}
2... d6 {[%clk 0:02:58.3]} 3. Bb5+ {[%clk 0:03:00.7]} 3... Nd7 {[%clk
0:02:58.2]} 4. O-O {[%clk 0:03:00.3]} 4... a6 {[%clk 0:02:56.7]} 5. Bd3 {[%clk
0:03:00.6]} 5... Ngf6 {[%clk 0:02:55.5]} 6. Re1 {[%clk 0:03:00.9]} 6... e5
{[%clk 0:02:55.3]} 7. a4 {[%clk 0:02:58.8]} 7... Be7 {[%clk 0:02:55.3]} 8. Nc3
{[%clk 0:02:59.1]} 8... O-O {[%clk 0:02:56.2]} 9. Bc4 {[%clk 0:02:59.4]} 9...
Nb8 {[%clk 0:02:53.4]} 10. d3 {[%clk 0:02:55.9]} 10... h6 {[%clk 0:02:52.7]} 11.
h3 {[%clk 0:02:51.3]} 11... Be6 {[%clk 0:02:52.9]} 12. Nh2 {[%clk 0:02:44]}
12... d5 {[%clk 0:02:32.2]} 13. exd5 {[%clk 0:02:41.3]} 13... Nxd5 {[%clk
0:02:32.5]} 14. Nxd5 {[%clk 0:02:29.9]} 14... Bxd5 {[%clk 0:02:32.1]} 15. Bxd5
{[%clk 0:02:29.5]} 15... Qxd5 {[%clk 0:02:32.1]} 16. Qf3 {[%clk 0:02:29.8]}
16... Rd8 {[%clk 0:02:21.1]} 17. b3 {[%clk 0:02:17.2]} 17... Nc6 {[%clk
0:02:20.7]} 18. Bb2 {[%clk 0:02:16.9]} 18... Qxf3 {[%clk 0:02:11]} 19. Nxf3
{[%clk 0:02:17.8]} 19... f6 {[%clk 0:02:09]} 20. Nd2 {[%clk 0:02:17.2]} 20... b5
{[%clk 0:02:00.5]} 21. g3 {[%clk 0:02:08.4]} 21... Nd4 {[%clk 0:01:45.4]} 22.
Bxd4 {[%clk 0:02:04.6]} 22... cxd4 {[%clk 0:01:45.6]} 23. f4 {[%clk 0:01:57.7]}
23... Bb4 {[%clk 0:01:44.7]} 24. Re2 {[%clk 0:01:55.4]} 24... exf4 {[%clk
0:01:29.7]} 25. gxf4 {[%clk 0:01:51.1]} 25... Re8 {[%clk 0:01:19.5]} 26. Rxe8+
{[%clk 0:00:50.3]} 26... Rxe8 {[%clk 0:01:17]} 27. Nf3 {[%clk 0:00:51.2]} 27...
Bc3 {[%clk 0:01:07.9]} 28. Rf1 {[%clk 0:00:40]} 28... bxa4 {[%clk 0:01:07.8]}
29. bxa4 {[%clk 0:00:39.2]} 29... Rb8 {[%clk 0:01:07.9]} 30. Rf2 {[%clk
0:00:30.5]} 30... Rb4 {[%clk 0:01:05.4]} 31. Re2 {[%clk 0:00:30.7]} 31... Kf7
{[%clk 0:01:04.5]} 32. Nh4 {[%clk 0:00:25.3]} 32... Rxa4 {[%clk 0:00:35.6]} 33.
Nf5 {[%clk 0:00:23.1]} 33... Ra1+ {[%clk 0:00:27.5]} 34. Kh2 {[%clk 0:00:21.1]}
34... Re1 {[%clk 0:00:24]} 35. Nd6+ {[%clk 0:00:20.4]} 35... Kg8 {[%clk
0:00:22.2]} 36. Rg2 {[%clk 0:00:18.7]} 36... Re7 {[%clk 0:00:18.4]} 37. Nf5
{[%clk 0:00:18.6]} 37... Ra7 {[%clk 0:00:18.5]} 38. Nxh6+ {[%clk 0:00:12.9]}
38... Kf8 {[%clk 0:00:18.9]} 39. Nf5 {[%clk 0:00:11.1]} 39... a5 {[%clk
0:00:19.5]} 40. Rg1 {[%clk 0:00:05.7]} 40... a4 {[%clk 0:00:20]} 41. Rb1 {[%clk
0:00:06.1]} 41... a3 {[%clk 0:00:19.2]} 42. Rb8+ {[%clk 0:00:06.7]} 42... Kf7
{[%clk 0:00:19.6]} 43. Nd6+ {[%clk 0:00:07]} 43... Ke6 {[%clk 0:00:20.1]} 44.
Nc4 {[%clk 0:00:04]} 44... a2 {[%clk 0:00:20]} 45. Kg3 {[%clk 0:00:03.6]} 45...
a1=Q {[%clk 0:00:19.9]} 46. Rb6+ {[%clk 0:00:04.5]} 46... Kf7 {[%clk 0:00:20.3]}
47. Nd6+ {[%clk 0:00:04.1]} 47... Kg8 {[%clk 0:00:20.8]} 48. Rb8+ {[%clk
0:00:04]} 48... Kh7 {[%clk 0:00:20.5]} 49. Kh4 {[%clk 0:00:03.3]} 49... Qg1
{[%clk 0:00:19.1]} 50. Nf5 {[%clk 0:00:01.3]} 50... Be1+ {[%clk 0:00:19.1]} 51.
Kh5 {[%clk 0:00:01.4]} 51... g6# {[%clk 0:00:19.7]} 0-1

[Event "*** Titled Tuesday Blitz"]
[Site "Chess.com"]
[Date "2021.03.09"]
[Round "9"]
[White "jd001"]
[Black "queen_iryna"]
[Result "0-1"]
[WhiteElo "2222"]
[BlackElo "2341"]
[TimeControl "180+1"]
[EndTime "11:48:20 PST"]
[Termination "queen_iryna won on time"]

1. d4 {[%clk 0:03:00.9]} 1... d6 {[%clk 0:03:00.2]} 2. e4 {[%clk 0:02:55.5]}
2... Nf6 {[%clk 0:02:59.6]} 3. Nc3 {[%clk 0:02:54.6]} 3... e5 {[%clk 0:02:59.3]}
4. Nf3 {[%clk 0:02:46]} 4... Nbd7 {[%clk 0:02:57.7]} 5. Bg5 {[%clk 0:02:44.7]}
5... Be7 {[%clk 0:02:53.6]} 6. Bc4 {[%clk 0:02:43.7]} 6... O-O {[%clk
0:02:50.9]} 7. Qe2 {[%clk 0:02:29.4]} 7... c6 {[%clk 0:02:38.4]} 8. dxe5 {[%clk
0:02:26.9]} 8... Nxe5 {[%clk 0:02:29.5]} 9. Nxe5 {[%clk 0:02:24.8]} 9... dxe5
{[%clk 0:02:30.4]} 10. O-O {[%clk 0:02:21.4]} 10... b5 {[%clk 0:02:23]} 11. Bb3
{[%clk 0:02:19.4]} 11... a5 {[%clk 0:02:10.7]} 12. a3 {[%clk 0:02:18.8]} 12...
Ba6 {[%clk 0:02:06.4]} 13. Qf3 {[%clk 0:02:07.5]} 13... b4 {[%clk 0:01:46.6]}
14. Ne2 {[%clk 0:02:06.6]} 14... Nd7 {[%clk 0:01:32.8]} 15. Bxe7 {[%clk
0:02:05.3]} 15... Qxe7 {[%clk 0:01:33.7]} 16. axb4 {[%clk 0:02:01.8]} 16... axb4
{[%clk 0:01:33.6]} 17. Rfd1 {[%clk 0:01:58.9]} 17... Bxe2 {[%clk 0:01:32]} 18.
Qxe2 {[%clk 0:01:58]} 18... Nc5 {[%clk 0:01:30.7]} 19. Bc4 {[%clk 0:01:55.7]}
19... Rfd8 {[%clk 0:01:22.4]} 20. Rxa8 {[%clk 0:01:44.2]} 20... Rxa8 {[%clk
0:01:21.7]} 21. h3 {[%clk 0:01:44]} 21... h6 {[%clk 0:01:12.8]} 22. Qe3 {[%clk
0:01:41.4]} 22... Nd7 {[%clk 0:01:00.1]} 23. Qd2 {[%clk 0:01:29.4]} 23... Nf8
{[%clk 0:00:53.5]} 24. Qd6 {[%clk 0:01:25.9]} 24... Qxd6 {[%clk 0:00:40.9]} 25.
Rxd6 {[%clk 0:01:24.9]} 25... Ra1+ {[%clk 0:00:41.8]} 26. Kh2 {[%clk 0:01:24.2]}
26... Rc1 {[%clk 0:00:41.8]} 27. Rxc6 {[%clk 0:01:20.8]} 27... Nd7 {[%clk
0:00:32.4]} 28. Rc7 {[%clk 0:01:14.4]} 28... Rd1 {[%clk 0:00:27.1]} 29. Rb7
{[%clk 0:00:52]} 29... Rd2 {[%clk 0:00:26.2]} 30. Bd3 {[%clk 0:00:41.2]} 30...
Nc5 {[%clk 0:00:25.7]} 31. Rxb4 {[%clk 0:00:34.5]} 31... Nxd3 {[%clk 0:00:25.4]}
32. cxd3 {[%clk 0:00:32.8]} 32... Rxf2 {[%clk 0:00:26]} 33. Rb5 {[%clk
0:00:28.7]} 33... f6 {[%clk 0:00:25.5]} 34. b4 {[%clk 0:00:28.3]} 34... Rb2
{[%clk 0:00:25.3]} 35. Rb7 {[%clk 0:00:16.7]} 35... Kh7 {[%clk 0:00:25.6]} 36.
b5 {[%clk 0:00:16.7]} 36... Rb3 {[%clk 0:00:25.9]} 37. b6 {[%clk 0:00:16.9]}
37... Rxd3 {[%clk 0:00:25.9]} 38. Rb8 {[%clk 0:00:16.8]} 38... Rb3 {[%clk
0:00:26]} 39. b7 {[%clk 0:00:17.1]} 39... Kg6 {[%clk 0:00:26.1]} 40. g4 {[%clk
0:00:14.7]} 40... Kg5 {[%clk 0:00:24]} 41. Kg2 {[%clk 0:00:12.9]} 41... Kh4
{[%clk 0:00:23.1]} 42. Kh2 {[%clk 0:00:10.5]} 42... Rb2+ {[%clk 0:00:23.3]} 43.
Kg1 {[%clk 0:00:10]} 43... Kxh3 {[%clk 0:00:22.8]} 44. Kf1 {[%clk 0:00:09.1]}
44... Kxg4 {[%clk 0:00:22.2]} 45. Ke1 {[%clk 0:00:09.4]} 45... h5 {[%clk
0:00:20.3]} 46. Kd1 {[%clk 0:00:09.8]} 46... h4 {[%clk 0:00:20.2]} 47. Kc1
{[%clk 0:00:10.4]} 47... Rb6 {[%clk 0:00:20.2]} 48. Kc2 {[%clk 0:00:10.7]} 48...
h3 {[%clk 0:00:20.4]} 49. Rh8 {[%clk 0:00:09.9]} 49... Rxb7 {[%clk 0:00:19.5]}
0-1

[Event "*** Titled Tuesday Blitz"]
[Site "Chess.com"]
[Date "2021.03.09"]
[Round "9"]
[White "Philosopherrr"]
[Black "chessdjw"]
[Result "0-1"]
[WhiteElo "2541"]
[BlackElo "2743"]
[TimeControl "180+1"]
[EndTime "11:48:21 PST"]
[Termination "chessdjw won by resignation"]

1. e4 {[%clk 0:02:59.6]} 1... e5 {[%clk 0:03:00.1]} 2. Nf3 {[%clk 0:02:57.3]}
2... Nc6 {[%clk 0:02:59.8]} 3. Bb5 {[%clk 0:02:57.5]} 3... a6 {[%clk 0:03:00]}
4. Ba4 {[%clk 0:02:57.6]} 4... Nf6 {[%clk 0:03:00.6]} 5. O-O {[%clk 0:02:57.9]}
5... b5 {[%clk 0:03:01.2]} 6. Bb3 {[%clk 0:02:58]} 6... Bc5 {[%clk 0:03:01.9]}
7. c3 {[%clk 0:02:57.5]} 7... d6 {[%clk 0:03:00.7]} 8. d4 {[%clk 0:02:55.6]}
8... Bb6 {[%clk 0:03:01.2]} 9. h3 {[%clk 0:02:51.4]} 9... O-O {[%clk 0:02:57.6]}
10. Re1 {[%clk 0:02:48.8]} 10... h6 {[%clk 0:02:48.7]} 11. dxe5 {[%clk
0:02:38.3]} 11... Nxe5 {[%clk 0:02:39.2]} 12. Nxe5 {[%clk 0:02:37.4]} 12... dxe5
{[%clk 0:02:40.1]} 13. Qf3 {[%clk 0:02:37.6]} 13... Bb7 {[%clk 0:02:35.1]} 14.
Nd2 {[%clk 0:02:24.5]} 14... c5 {[%clk 0:02:32.1]} 15. Nf1 {[%clk 0:02:24.6]}
15... Nxe4 {[%clk 0:02:11.4]} 16. Bxh6 {[%clk 0:01:05.8]} 16... c4 {[%clk
0:02:01.2]} 17. Rxe4 {[%clk 0:00:46]} 17... Bxe4 {[%clk 0:01:28.9]} 18. Qxe4
{[%clk 0:00:44.7]} 18... cxb3 {[%clk 0:01:24.3]} 19. Be3 {[%clk 0:00:34.8]}
19... bxa2 {[%clk 0:01:16.5]} 20. Rxa2 {[%clk 0:00:31.8]} 20... Bxe3 {[%clk
0:01:10.1]} 21. Nxe3 {[%clk 0:00:31.7]} 21... Re8 {[%clk 0:01:00.7]} 22. Ra1
{[%clk 0:00:26.8]} 22... Qg5 {[%clk 0:00:56.1]} 23. g3 {[%clk 0:00:24.7]} 23...
g6 {[%clk 0:00:49.3]} 24. h4 {[%clk 0:00:25.1]} 24... Qe7 {[%clk 0:00:41.1]} 25.
Kg2 {[%clk 0:00:24.1]} 25... f5 {[%clk 0:00:37.4]} 26. Qc6 {[%clk 0:00:24.1]}
26... Qe6 {[%clk 0:00:35.3]} 27. Qb7 {[%clk 0:00:21.5]} 27... Reb8 {[%clk
0:00:30.6]} 28. Qd5 {[%clk 0:00:21]} 28... Qxd5+ {[%clk 0:00:28.4]} 29. Nxd5
{[%clk 0:00:21.9]} 29... Rd8 {[%clk 0:00:13.8]} 30. Ne7+ {[%clk 0:00:17.5]}
30... Kf7 {[%clk 0:00:11.3]} 31. Nc6 {[%clk 0:00:18.1]} 31... Rd5 {[%clk
0:00:11.9]} 32. Kf3 {[%clk 0:00:17.7]} 32... e4+ {[%clk 0:00:12.1]} 33. Kf4
{[%clk 0:00:17.7]} 33... Rc5 {[%clk 0:00:11.8]} 34. Ne5+ {[%clk 0:00:16.7]}
34... Ke6 {[%clk 0:00:12.1]} 35. Nxg6 {[%clk 0:00:16.7]} 35... Rg8 {[%clk
0:00:12.3]} 36. h5 {[%clk 0:00:16.7]} 36... Rc6 {[%clk 0:00:11.3]} 37. Kg5
{[%clk 0:00:14.1]} 37... Rd6 {[%clk 0:00:10.9]} 38. h6 {[%clk 0:00:14.1]} 38...
Kf7 {[%clk 0:00:11.3]} 39. Kxf5 {[%clk 0:00:12.3]} 39... Rdxg6 {[%clk
0:00:11.2]} 40. h7 {[%clk 0:00:10.3]} 40... Rh8 {[%clk 0:00:11.6]} 41. Kxe4
{[%clk 0:00:09.4]} 41... Rxh7 {[%clk 0:00:11.8]} 42. Rd1 {[%clk 0:00:09.5]}
42... Re6+ {[%clk 0:00:12]} 43. Kf3 {[%clk 0:00:09]} 43... Kg6 {[%clk
0:00:11.7]} 44. Rd8 {[%clk 0:00:08.4]} 44... Rf7+ {[%clk 0:00:12.3]} 45. Kg2
{[%clk 0:00:08.9]} 45... Re2 {[%clk 0:00:12.7]} 46. Rd6+ {[%clk 0:00:09.5]}
46... Rf6 {[%clk 0:00:12.9]} 0-1